bitfinex-derivatives/quotes_BTCF0:USTF0_20251103
["timestamp","ask_amount","ask_price","bid_price","bid_amount"]
[1762166161831,0.54109478,107420.0,107410.0,0.41866]
[1762166162032,0.64657546,107420.0,107410.0,0.41866]
[1762166162228,0.63266546,107420.0,107410.0,0.41866]
[1762166162632,0.63366546,107420.0,107410.0,0.41866]
[1762166162931,0.46641429,107420.0,107410.0,0.46875039]
[1762166163127,0.01012361,107420.0,107410.0,0.65343607]
[1762166163333,0.001,107420.0,107410.0,0.67015017]
[1762166163725,0.004,107420.0,107410.0,0.67015017]
[1762166164631,0.001,107420.0,107410.0,0.67015017]
[1762166165028,0.11414068,107420.0,107410.0,0.57703517]
[1762166165229,0.09257068,107420.0,107410.0,0.51023068]
[1762166165732,0.09157068,107420.0,107410.0,0.60334568]
[1762166166334,0.09157068,107420.0,107410.0,0.67015017]
[1762166167631,0.09157068,107420.0,107410.0,0.60334568]
[1762166168137,0.09157068,107420.0,107410.0,0.67015017]
[1762166168339,0.11314068,107420.0,107410.0,0.67015017]
[1762166168639,0.09157068,107420.0,107410.0,0.67015017]
[1762166168836,0.14394801,107430.0,107420.0,0.1509663]
[1762166169030,0.14394801,107430.0,107420.0,0.56172815]
[1762166169031,0.13449068,107430.0,107420.0,0.56172815]
[1762166169431,0.13449068,107430.0,107420.0,0.65329883]
[1762166169731,0.46566264,107440.0,107430.0,0.1509577]
[1762166170035,0.46566264,107440.0,107430.0,0.56171906]
[1762166170737,0.46566264,107440.0,107430.0,0.46862136]
[1762166170939,0.57114332,107440.0,107430.0,0.46862136]
[1762166171141,0.57114332,107440.0,107430.0,0.45473136]
[1762166171433,0.57714332,107440.0,107430.0,0.45473136]
[1762166172536,0.58014332,107440.0,107430.0,0.45473136]
[1762166176239,0.58014332,107440.0,107430.0,0.40477]
[1762166180344,0.58014332,107440.0,107430.0,0.41783]
[1762166180540,0.24439332,107440.0,107430.0,0.5109277]
[1762166180740,0.56599332,107440.0,107430.0,0.56088906]
[1762166181238,0.47442264,107440.0,107430.0,0.56088906]
[1762166181945,0.47442264,107440.0,107430.0,0.46779136]
[1762166182140,0.56599332,107440.0,107430.0,0.56088906]
[1762166183142,0.15282264,107440.0,107430.0,0.56088906]
[1762166183449,0.47614264,107440.0,107430.0,0.55936204]
[1762166183642,0.15454264,107440.0,107430.0,0.55936204]
[1762166184440,0.15454264,107440.0,107430.0,0.46779136]
[1762166184637,0.24611332,107440.0,107430.0,0.46779136]
[1762166184837,0.24311332,107440.0,107430.0,0.46779136]
[1762166185342,0.24111332,107440.0,107430.0,0.46779136]
[1762166185947,0.25401332,107440.0,107430.0,0.46779136]
[1762166186343,0.24111332,107440.0,107430.0,0.41783]
[1762166186847,0.24111332,107440.0,107430.0,0.5109277]
[1762166187946,0.12622264,107440.0,107430.0,0.5109277]
[1762166188252,0.12694264,107440.0,107430.0,0.56088906]
[1762166188448,0.14937264,107440.0,107430.0,0.56088906]
[1762166189351,0.25384332,107440.0,107430.0,0.46779136]
[1762166191856,0.21851332,107440.0,107430.0,0.46779136]
[1762166192046,0.24094332,107440.0,107430.0,0.46779136]
[1762166192443,0.25384332,107440.0,107430.0,0.46779136]
[1762166192855,0.25384332,107440.0,107430.0,0.45473136]
[1762166194754,0.27607707,107440.0,107430.0,0.45473136]
[1762166195362,0.25384332,107440.0,107430.0,0.45473136]
[1762166196258,0.25384332,107440.0,107430.0,0.47157449]
[1762166197847,0.25384332,107440.0,107430.0,0.40477]
[1762166198052,0.25384332,107440.0,107430.0,0.09399031]
[1762166200559,0.16228517,107440.0,107430.0,0.09399031]
[1762166202360,0.18455093,107440.0,107430.0,0.09399031]
[1762166206259,0.16228517,107440.0,107430.0,0.09399031]
[1762166206864,0.18454733,107440.0,107430.0,0.09399031]
[1762166208065,0.18454733,107440.0,107430.0,0.05002031]
[1762166208365,0.05728,107430.0,107420.0,0.09512031]
[1762166208565,0.58406858,107430.0,107420.0,0.09512031]
[1762166209567,0.58406858,107430.0,107420.0,0.07241031]
[1762166210465,0.56180642,107430.0,107420.0,0.07241031]
[1762166210969,0.58405732,107430.0,107420.0,0.07241031]
[1762166211268,0.59305732,107430.0,107420.0,0.02239]
[1762166211771,0.95385732,107430.0,107420.0,0.02239]
[1762166214171,0.93160642,107430.0,107420.0,0.02239]
[1762166214769,0.90879642,107430.0,107410.0,0.42471031]
[1762166214970,0.14886321,107420.0,107410.0,0.46981031]
[1762166217472,0.14986321,107420.0,107410.0,0.46981031]
[1762166217673,0.15286321,107420.0,107410.0,0.46981031]
[1762166220783,0.15286321,107420.0,107410.0,0.45592031]
[1762166221184,0.04786,107420.0,107410.0,0.46876031]
[1762166221380,0.004,107420.0,107410.0,0.51032321]
[1762166221577,0.33073196,107440.0,107430.0,0.05281]
[1762166221782,0.03214196,107440.0,107430.0,0.4635946]
[1762166221979,0.00933196,107440.0,107430.0,0.5566974]
[1762166222186,0.81760321,107450.0,107440.0,0.05794]
[1762166222882,0.83102321,107450.0,107440.0,0.0451]
[1762166223280,0.84041054,107450.0,107440.0,0.0451]
[1762166223981,0.84941054,107450.0,107440.0,0.0451]
[1762166224583,0.05728,107440.0,107430.0,0.4558846]
[1762166224783,0.14886321,107440.0,107430.0,0.0950846]
[1762166224984,0.50966321,107440.0,107430.0,0.0950846]
[1762166225181,0.14886321,107440.0,107430.0,0.0950846]
[1762166226185,0.15386321,107440.0,107430.0,0.0950846]
[1762166226685,0.15386321,107440.0,107430.0,0.1079246]
[1762166226991,0.15586321,107440.0,107430.0,0.1079246]
[1762166228379,0.05086,107440.0,107430.0,0.4687246]
[1762166228585,0.02981,107440.0,107430.0,0.5618289]
[1762166228982,0.05086,107440.0,107430.0,0.5618289]
[1762166229688,0.05086,107440.0,107430.0,0.4687246]
[1762166230085,0.14244321,107440.0,107430.0,0.4687246]
[1762166230489,0.14244321,107440.0,107430.0,0.5618286]
[1762166230789,0.007,107440.0,107430.0,0.92478721]
[1762166230985,0.00938733,107450.0,107440.0,0.1510349]
[1762166231186,1.91294321,107460.0,107450.0,0.05794]
[1762166231491,1.91294321,107460.0,107450.0,0.10786014]
[1762166231687,1.92688321,107460.0,107450.0,0.10786014]
[1762166231892,1.93604548,107460.0,107450.0,0.10786014]
[1762166232290,1.93604548,107460.0,107450.0,0.05794]
[1762166233594,1.94104548,107460.0,107450.0,0.05794]
[1762166233790,1.96321739,107460.0,107450.0,0.0451]
[1762166234091,2.12888955,107460.0,107440.0,0.41072014]
[1762166234289,0.51114321,107450.0,107440.0,0.04651]
[1762166234795,0.53331502,107450.0,107440.0,0.04651]
[1762166235297,0.51114321,107450.0,107440.0,0.04651]
[1762166237495,0.53331092,107450.0,107440.0,0.04651]
[1762166240197,0.17251092,107450.0,107440.0,0.40731]
[1762166240387,0.04482,107450.0,107440.0,0.41995]
[1762166240589,0.04482,107450.0,107440.0,0.5130383]
[1762166240988,0.15034321,107450.0,107440.0,0.41995]
[1762166242196,0.15034321,107450.0,107440.0,0.40731]
[1762166242500,0.15034321,107450.0,107440.0,0.5130383]
[1762166242694,1.93600548,107460.0,107450.0,0.05915]
[1762166242998,0.50299193,107460.0,107450.0,0.05915]
[1762166243196,0.50299193,107460.0,107450.0,0.04651]
[1762166243899,0.50599193,107460.0,107450.0,0.04651]
[1762166244100,0.50699193,107460.0,107450.0,0.04651]
[1762166245790,0.50699193,107460.0,107450.0,0.05915]
[1762166246597,0.50699965,107460.0,107450.0,0.05915]
[1762166248405,0.50699965,107460.0,107450.0,0.04651]
[1762166248900,0.41541644,107460.0,107450.0,0.04651]
[1762166249100,0.50699965,107460.0,107450.0,0.04651]
[1762166251006,0.48482548,107460.0,107450.0,0.04651]
[1762166253013,0.48482548,107460.0,107450.0,0.09643014]
[1762166257214,0.50695018,107460.0,107450.0,0.09643014]
[1762166257914,0.48482548,107460.0,107450.0,0.09643014]
[1762166258216,0.50686199,107460.0,107450.0,0.09643014]
[1762166261623,0.50686199,107460.0,107450.0,0.07320014]
[1762166262018,0.50686199,107460.0,107450.0,0.09555014]
[1762166262426,0.59837224,107460.0,107450.0,0.09555014]
[1762166265921,0.59837224,107460.0,107450.0,0.18862974]
[1762166266519,0.59837224,107460.0,107450.0,0.09555014]
[1762166270124,0.59837224,107460.0,107450.0,0.04992014]
[1762166270324,0.59837224,107460.0,107450.0,0.07136014]
[1762166271728,0.59837224,107460.0,107450.0,0.04992014]
[1762166272329,0.59837224,107460.0,107450.0,0.07136014]
[1762166276232,0.62344555,107460.0,107450.0,0.04379]
[1762166276427,0.62344555,107460.0,107450.0,0.02144]
[1762166276629,0.05758,107450.0,107440.0,0.45451014]
[1762166276930,0.17116324,107450.0,107440.0,0.45451014]
[1762166277720,0.17116324,107450.0,107440.0,0.07136014]
[1762166277919,0.26270997,107450.0,107440.0,0.04992014]
[1762166278227,0.04495,107440.0,107430.0,0.45451014]
[1762166278433,0.58394997,107440.0,107430.0,0.45451014]
[1762166278731,0.56191346,107440.0,107430.0,0.40459]
[1762166279128,0.58397051,107440.0,107430.0,0.45464277]
[1762166279633,0.58397051,107440.0,107430.0,0.45664277]
[1762166280027,0.49242378,107440.0,107430.0,0.45664277]
[1762166280335,0.47036673,107440.0,107430.0,0.45964277]
[1762166281136,0.47036673,107440.0,107430.0,0.54773967]
[1762166281332,0.45773673,107440.0,107430.0,0.6521264]
[1762166281538,0.36619,107440.0,107430.0,0.6521264]
[1762166281743,0.45773673,107440.0,107430.0,0.6521264]
[1762166282035,0.47036673,107440.0,107430.0,0.6521264]
[1762166284737,0.01263,107450.0,107440.0,0.1145283]
[1762166284940,0.45773673,107450.0,107440.0,0.6521178]
[1762166285142,0.13649673,107450.0,107440.0,0.5590295]
[1762166285637,0.17116611,107450.0,107440.0,0.45464277]
[1762166285837,0.17216611,107450.0,107440.0,0.45464277]
[1762166286340,0.15012673,107450.0,107440.0,0.40459]
[1762166286940,0.15312673,107450.0,107440.0,0.40459]
[1762166287442,0.15312673,107450.0,107440.0,0.45461486]
[1762166288137,0.15312673,107450.0,107440.0,0.05002486]
[1762166288846,0.15312673,107450.0,107440.0,0.07146486]
[1762166289346,0.15312673,107450.0,107440.0,0.09381486]
[1762166290342,0.15312673,107450.0,107440.0,0.05002486]
[1762166290940,0.15312673,107450.0,107440.0,0.09381486]
[1762166292446,0.17502344,107450.0,107440.0,0.09381486]
[1762166292631,0.17502344,107450.0,107440.0,0.54770316]
[1762166292632,0.06158,107450.0,107440.0,0.54770316]
[1762166292838,0.14049673,107450.0,107440.0,0.65270989]
[1762166293044,0.46173673,107450.0,107440.0,0.65270989]
[1762166293349,0.47523673,107450.0,107440.0,0.54770316]
[1762166293539,0.47523673,107450.0,107440.0,0.63924989]
[1762166293849,0.47523673,107450.0,107440.0,0.54770316]
[1762166294643,0.004,107450.0,107440.0,1.08221625]
[1762166294845,0.50834673,107480.0,107470.0,0.04507]
[1762166295145,0.50014133,107480.0,107470.0,0.18661643]
[1762166295443,0.05283103,107480.0,107470.0,0.64818873]
[1762166295644,0.14437776,107480.0,107470.0,0.66485529]
[1762166295849,0.15787776,107480.0,107470.0,0.48024626]
[1762166296141,0.15787776,107480.0,107470.0,0.41358]
[1762166296349,0.15787776,107480.0,107470.0,0.4635054]
[1762166296736,0.16787776,107480.0,107470.0,0.4635054]
[1762166297151,0.16887776,107480.0,107470.0,0.4635054]
[1762166297542,0.15887776,107480.0,107470.0,0.4635054]
[1762166297946,0.05483103,107480.0,107470.0,0.64811443]
[1762166298152,0.05483103,107480.0,107470.0,0.59818903]
[1762166298153,0.002,107480.0,107470.0,0.59818903]
[1762166298446,0.003,107490.0,107480.0,0.1495836]
[1762166298647,0.003,107490.0,107480.0,1.01467706]
[1762166299450,0.04637,107490.0,107480.0,0.60042346]
[1762166299747,0.04637,107490.0,107480.0,0.92317033]
[1762166300143,0.05037,107490.0,107480.0,0.92317033]
[1762166300349,0.05237,107490.0,107480.0,0.97293069]
[1762166300545,0.06587,107490.0,107480.0,0.86992396]
[1762166300752,0.24896346,107490.0,107480.0,0.38314]
[1762166301050,0.15541673,107490.0,107480.0,0.04607]
[1762166301348,0.15141673,107490.0,107480.0,0.04807]
[1762166301547,0.47273673,107490.0,107480.0,0.04807]
[1762166301935,0.38119,107490.0,107480.0,0.13961673]
[1762166302140,0.38119,107490.0,107480.0,0.51387673]
[1762166302341,0.04637,107490.0,107480.0,0.60693033]
[1762166302637,0.003,107490.0,107480.0,0.69847706]
[1762166302840,0.003,107490.0,107480.0,1.06955742]
[1762166303042,0.003,107490.0,107480.0,1.06755742]
[1762166303237,0.004,107490.0,107480.0,1.06755742]
[1762166303440,0.004,107490.0,107480.0,0.97601069]
[1762166303847,0.004,107490.0,107480.0,0.97501069]
[1762166304150,0.003,107490.0,107480.0,1.06855742]
[1762166304353,0.3743,107520.0,107500.0,0.04507]
[1762166304354,0.14841673,107510.0,107500.0,0.04507]
[1762166304652,1.63491673,107510.0,107500.0,0.41868]
[1762166304953,0.14841673,107510.0,107500.0,0.40587]
[1762166306441,0.15241673,107510.0,107500.0,0.40587]
[1762166306845,0.16377489,107510.0,107500.0,0.40587]
[1762166307445,0.05915,107500.0,107490.0,0.40452]
[1762166307647,0.47197673,107500.0,107490.0,0.40452]
[1762166308056,0.47197673,107500.0,107490.0,0.41723]
[1762166308554,0.47197673,107500.0,107490.0,0.40452]
[1762166309152,0.47197673,107500.0,107490.0,0.41723]
[1762166309556,0.47297673,107500.0,107490.0,0.41723]
[1762166310858,0.56452346,107500.0,107490.0,0.40452]
[1762166311656,0.04537,107490.0,107480.0,0.38247]
[1762166311853,0.15069673,107490.0,107480.0,0.41723]
[1762166313058,0.15069673,107490.0,107480.0,0.40452]
[1762166313263,0.15069673,107490.0,107480.0,0.40652]
[1762166313657,0.15069673,107490.0,107480.0,0.40752]
[1762166314454,0.60304346,107490.0,107480.0,0.003]
[1762166317062,0.92719019,107490.0,107480.0,0.003]
[1762166317368,0.92719019,107490.0,107450.0,0.04372]
[1762166317369,0.05867,107460.0,107450.0,0.04372]
[1762166317560,0.56316346,107460.0,107450.0,0.04372]
[1762166319174,0.56316346,107460.0,107450.0,0.05372]
[1762166319870,0.56316346,107460.0,107450.0,0.05872]
[1762166322475,0.47161588,107460.0,107450.0,0.05872]
[1762166323572,0.47161588,107460.0,107450.0,0.015]
[1762166323875,0.83241588,107460.0,107450.0,0.015]
[1762166324171,0.83241588,107460.0,107450.0,0.05976]
[1762166325074,2.33241588,107460.0,107450.0,0.05976]
[1762166325770,0.83241588,107460.0,107450.0,0.05976]
[1762166326469,2.33241588,107460.0,107450.0,0.05976]
[1762166329378,1.97161588,107460.0,107450.0,0.05976]
[1762166331575,1.88007,107460.0,107450.0,0.05976]
[1762166331876,0.38007,107460.0,107450.0,0.42056]
[1762166332178,0.38007,107460.0,107450.0,0.43342]
[1762166332571,0.38007,107460.0,107450.0,0.5264996]
[1762166332972,0.38007,107460.0,107450.0,0.43342]
[1762166333782,0.38007,107460.0,107450.0,0.42056]
[1762166334782,0.38007,107460.0,107450.0,0.5136396]
[1762166335083,0.38007,107460.0,107450.0,0.5264996]
[1762166337280,0.38007,107460.0,107450.0,0.43342]
[1762166337584,0.38007,107460.0,107450.0,0.42056]
[1762166339187,0.38007,107460.0,107450.0,0.5136396]
[1762166339378,0.38007,107460.0,107450.0,0.5264996]
[1762166339982,0.38007,107460.0,107450.0,0.43342]
[1762166340181,0.38007,107460.0,107450.0,0.5264996]
[1762166340483,0.38007,107460.0,107450.0,0.42056]
[1762166341384,0.38007,107460.0,107450.0,0.47032036]
[1762166342584,0.47161588,107460.0,107450.0,0.47032036]
[1762166342784,0.47161588,107460.0,107450.0,0.56339996]
[1762166343086,0.38007,107460.0,107450.0,0.57610996]
[1762166343473,0.38007,107460.0,107450.0,0.47032036]
[1762166344488,0.47161588,107460.0,107450.0,0.47032036]
[1762166345086,0.47161588,107460.0,107450.0,0.10952036]
[1762166345482,0.47161588,107460.0,107450.0,0.06476036]
[1762166345683,0.83241588,107460.0,107450.0,0.06476036]
[1762166345880,0.92396176,107460.0,107450.0,0.06476036]
[1762166346088,0.83241588,107460.0,107450.0,0.06476036]
[1762166346281,0.92396176,107460.0,107450.0,0.06476036]
[1762166346784,0.0505,107450.0,107440.0,0.05008453]
[1762166346986,0.16416408,107450.0,107440.0,0.05008453]
[1762166347184,0.52496408,107450.0,107440.0,0.05008453]
[1762166347990,0.52496408,107450.0,107440.0,0.00409769]
[1762166348191,0.52496408,107450.0,107440.0,0.01109769]
[1762166348687,0.52496408,107450.0,107440.0,0.007]
[1762166348893,0.05137,107430.0,107420.0,0.00307191]
[1762166349188,0.02236,107410.0,107400.0,0.3608]
[1762166349385,0.46837588,107410.0,107400.0,0.02288]
[1762166349785,0.46845339,107410.0,107400.0,0.02288]
[1762166350286,0.46845339,107410.0,107400.0,0.02588]
[1762166350485,0.46845339,107410.0,107400.0,0.003]
[1762166350685,0.47755664,107410.0,107400.0,0.004]
[1762166350884,0.47955664,107410.0,107400.0,0.02388]
[1762166351293,0.84035664,107410.0,107400.0,0.001]
[1762166352387,0.05683,107390.0,107380.0,0.42131305]
[1762166352591,0.46988942,107390.0,107380.0,0.42131305]
[1762166353583,0.47288942,107390.0,107380.0,0.42131305]
[1762166353784,0.36804354,107390.0,107380.0,0.51445335]
[1762166355895,0.00307354,107390.0,107380.0,0.60599923]
[1762166358892,0.02441354,107390.0,107380.0,0.60599923]
[1762166359197,0.00307354,107390.0,107380.0,0.51445335]
[1762166359398,0.00307354,107390.0,107380.0,0.60599923]
[1762166362497,3.54e-06,107390.0,107380.0,0.60599923]
[1762166362696,0.36501,107410.0,107400.0,0.1516229]
[1762166363904,0.37201,107410.0,107400.0,0.1516229]
[1762166364201,0.37501,107410.0,107400.0,0.5124229]
[1762166364504,0.46655588,107410.0,107400.0,0.5124229]
[1762166366298,0.34068795,107410.0,107400.0,0.5124229]
[1762166366499,0.35282,107410.0,107400.0,0.60396878]
[1762166366801,0.01,107410.0,107400.0,0.60396878]
[1762166368994,0.06192124,107410.0,107400.0,0.5124229]
[1762166369199,0.05492124,107410.0,107400.0,0.4193]
[1762166370003,0.05392124,107410.0,107400.0,0.4193]
[1762166370303,0.05492124,107410.0,107400.0,0.4193]
[1762166370502,0.51611712,107410.0,107400.0,0.04458]
[1762166370695,0.51611712,107410.0,107400.0,0.02127]
[1762166371002,0.83747712,107410.0,107400.0,0.02127]
[1762166373404,0.05592,107400.0,107390.0,0.05769]
[1762166373603,0.14746588,107400.0,107390.0,0.04377]
[1762166375396,0.14746588,107400.0,107390.0,0.04477]
[1762166375602,0.14746588,107400.0,107390.0,0.09450666]
[1762166376002,0.13464588,107400.0,107390.0,0.10729666]
[1762166376196,0.20777064,107400.0,107390.0,0.10729666]
[1762166376501,0.20777064,107400.0,107390.0,0.05756]
[1762166376702,0.22059064,107400.0,107390.0,0.04477]
[1762166377006,0.67293652,107400.0,107390.0,0.001]
[1762166377198,0.69516239,107400.0,107390.0,0.001]
[1762166378501,0.05592,107390.0,107380.0,0.10936971]
[1762166378706,0.46882588,107390.0,107380.0,0.10936971]
[1762166379100,0.45600588,107390.0,107380.0,0.10936971]
[1762166379605,0.45600588,107390.0,107380.0,0.11036971]
[1762166379802,0.46882588,107390.0,107380.0,0.09757971]
[1762166380001,0.46882588,107390.0,107380.0,0.02660305]
[1762166381007,0.45973883,107390.0,107380.0,0.01740885]
[1762166381207,0.45973883,107390.0,107380.0,0.00407305]
[1762166382407,0.45986277,107390.0,107380.0,0.00407305]
[1762166383107,0.91233259,107390.0,107380.0,0.00407305]
[1762166383308,0.93458961,107390.0,107380.0,0.01741071]
[1762166384207,0.93458961,107390.0,107380.0,0.00407305]
[1762166385903,0.93458961,107390.0,107380.0,0.02711305]
[1762166386101,0.93458961,107390.0,107380.0,0.04918305]
[1762166386302,0.91233259,107390.0,107380.0,0.00407305]
[1762166387811,0.91233259,107390.0,107380.0,0.04918305]
[1762166388202,0.82066277,107390.0,107380.0,0.04918305]
[1762166388809,0.45986277,107390.0,107380.0,0.04918305]
[1762166389009,0.45986277,107390.0,107380.0,0.06296305]
[1762166389610,0.44704277,107390.0,107380.0,0.06296305]
[1762166389809,0.12568277,107390.0,107380.0,0.15463287]
[1762166390004,0.33401295,107390.0,107380.0,0.38917965]
[1762166390211,0.49900982,107400.0,107390.0,0.1520216]
[1762166390411,0.04654,107400.0,107390.0,0.65422808]
[1762166390611,0.82959106,107410.0,107400.0,0.05889]
[1762166390912,0.46879106,107410.0,107400.0,0.05889]
[1762166391213,0.48161106,107410.0,107400.0,0.04511]
[1762166391418,0.48161106,107410.0,107400.0,0.02304]
[1762166391810,0.05539,107400.0,107390.0,0.46942666]
[1762166392110,0.05539,107400.0,107380.0,0.69905305]
[1762166392111,0.04654,107390.0,107380.0,0.56416953]
[1762166392318,0.11492982,107390.0,107380.0,0.56416953]
[1762166392813,0.13820982,107390.0,107380.0,0.65730983]
[1762166393018,0.11492982,107390.0,107380.0,0.65730983]
[1762166393218,0.11492982,107390.0,107380.0,0.56416953]
[1762166393419,0.13820982,107390.0,107380.0,0.56416953]
[1762166394420,0.11492982,107390.0,107380.0,0.65730983]
[1762166394720,0.13820982,107390.0,107380.0,0.47249971]
[1762166395120,0.13820982,107390.0,107380.0,0.47349971]
[1762166396216,0.04654,107390.0,107380.0,0.42376305]
[1762166396422,0.13820982,107390.0,107380.0,0.42376305]
[1762166397017,0.04654,107390.0,107380.0,0.42376305]
[1762166397216,0.13820982,107390.0,107380.0,0.47349971]
[1762166398122,0.04654,107390.0,107380.0,0.47349971]
[1762166398317,0.13820982,107390.0,107380.0,0.47349971]
[1762166401118,0.45960982,107390.0,107380.0,0.47349971]
[1762166401313,0.55596964,107390.0,107380.0,0.43764971]
[1762166401509,0.55596964,107390.0,107380.0,0.09891971]
[1762166401713,0.45960982,107390.0,107380.0,0.11269971]
[1762166402316,0.36794,107390.0,107380.0,0.11269971]
[1762166402518,0.48252204,107390.0,107380.0,0.11269971]
[1762166406930,0.36794,107390.0,107380.0,0.06296305]
[1762166407624,0.11927759,107400.0,107390.0,0.05889]
[1762166407829,0.44067759,107400.0,107390.0,0.41969]
[1762166408126,0.04654,107400.0,107390.0,0.5128216]
[1762166408425,0.49170328,107410.0,107400.0,0.04511]
[1762166408617,0.49170328,107410.0,107400.0,0.1089183]
[1762166409431,0.50055328,107410.0,107400.0,0.1089183]
[1762166409627,0.50055328,107410.0,107400.0,0.0951383]
[1762166410429,0.50055328,107410.0,107400.0,0.1089183]
[1762166410926,0.49670328,107410.0,107400.0,0.1089183]
[1762166411132,0.86635328,107410.0,107400.0,0.1089183]
[1762166411330,0.86635328,107410.0,107400.0,0.0500283]
[1762166411529,0.86935328,107410.0,107400.0,0.0500283]
[1762166413235,0.86935328,107410.0,107400.0,0.0733283]
[1762166414027,0.86935328,107410.0,107400.0,0.0948383]
[1762166414229,0.50855328,107410.0,107400.0,0.1086783]
[1762166415736,0.50855328,107410.0,107400.0,0.0948383]
[1762166416330,0.53085393,107410.0,107400.0,0.04481]
[1762166417837,0.53085393,107410.0,107400.0,0.05865]
[1762166418135,0.52200393,107410.0,107400.0,0.05865]
[1762166422241,0.40742189,107410.0,107400.0,0.5125729]
[1762166422541,0.01718124,107410.0,107400.0,0.6542145]
[1762166423139,0.01718124,107410.0,107400.0,0.67085246]
[1762166423537,0.008,107410.0,107400.0,0.6041862]
[1762166424845,0.15300102,107410.0,107400.0,0.5110633]
[1762166425242,0.15300102,107410.0,107400.0,0.65413787]
[1762166425945,0.15300102,107410.0,107400.0,0.56101497]
[1762166426241,0.15300102,107410.0,107400.0,0.46940167]
[1762166426542,0.15300102,107410.0,107400.0,0.48611626]
[1762166426738,0.15300102,107410.0,107400.0,0.41945]
[1762166427639,0.15300102,107410.0,107400.0,0.46939731]
[1762166434349,0.15300102,107410.0,107400.0,0.41945]
[1762166435046,0.24461432,107410.0,107400.0,0.10860288]
[1762166435358,0.60541432,107410.0,107400.0,0.10860288]
[1762166435551,0.61426432,107410.0,107400.0,0.09476288]
[1762166435947,0.60541432,107410.0,107400.0,0.10749288]
[1762166436654,0.06138772,107410.0,107400.0,0.46829288]
[1762166436951,0.15300102,107410.0,107400.0,0.65302908]
[1762166437148,0.15300102,107410.0,107400.0,0.56141578]
[1762166437949,0.15300102,107410.0,107400.0,0.5114629]
[1762166438455,0.4738033,107430.0,107420.0,0.04442]
[1762166438751,0.46637782,107430.0,107420.0,0.10712592]
[1762166438951,0.14505782,107430.0,107420.0,0.10712592]
[1762166439154,0.46637782,107430.0,107420.0,0.10712592]
[1762166439855,0.48437782,107430.0,107420.0,0.10712592]
[1762166440154,0.16305782,107430.0,107420.0,0.10712592]
[1762166440448,0.15805782,107430.0,107420.0,0.10712592]
[1762166444351,0.15803946,107430.0,107420.0,0.10712592]
[1762166445241,0.15803946,107430.0,107420.0,0.20023152]
[1762166445440,0.15803946,107430.0,107420.0,0.10712592]
[1762166446155,0.15803946,107430.0,107420.0,0.46792592]
[1762166450362,0.02220452,107430.0,107420.0,0.56103152]
[1762166450558,0.013,107430.0,107420.0,0.97390646]
[1762166450860,0.013,107430.0,107420.0,0.92393054]
[1762166451759,0.007,107430.0,107420.0,0.92393054]
[1762166452060,0.003,107430.0,107420.0,0.92393054]
[1762166453560,0.003,107430.0,107420.0,0.9905968]
[1762166453860,0.37518087,107440.0,107430.0,0.1502969]
[1762166454060,0.37518087,107440.0,107430.0,0.56100257]
[1762166454248,0.37518087,107440.0,107430.0,0.46790567]
[1762166454658,0.37518087,107440.0,107430.0,0.56100257]
[1762166454962,0.37818087,107440.0,107430.0,0.56100257]
[1762166455762,0.004,107440.0,107430.0,0.65259751]
[1762166456061,0.004,107440.0,107430.0,0.6693581]
[1762166457460,0.004,107440.0,107430.0,0.60269184]
[1762166462161,0.54018513,107460.0,107450.0,0.1502796]
[1762166462464,0.44859019,107460.0,107450.0,0.5110796]
[1762166462658,0.44859019,107460.0,107450.0,0.418]
[1762166462864,0.44859019,107460.0,107450.0,0.5110796]
[1762166463058,0.35202693,107460.0,107450.0,0.5110796]
[1762166463264,0.37506693,107460.0,107450.0,0.5110796]
[1762166463464,0.37906693,107460.0,107450.0,0.5110796]
[1762166463861,0.38706693,107460.0,107450.0,0.418]
[1762166464656,0.38706693,107460.0,107450.0,0.5110796]
[1762166465868,0.012,107460.0,107450.0,0.65249229]
[1762166466460,0.012,107460.0,107450.0,0.60267454]
[1762166466960,0.03341,107460.0,107450.0,0.60267454]
[1762166467161,0.05645,107460.0,107450.0,0.5110796]
[1762166467669,0.03341,107460.0,107450.0,0.5110796]
[1762166468061,0.03341,107460.0,107450.0,0.60267454]
[1762166468572,0.012,107460.0,107450.0,0.96347454]
[1762166471170,0.012,107460.0,107450.0,1.01329229]
[1762166471371,0.012,107460.0,107450.0,0.96347454]
[1762166471670,0.012,107460.0,107450.0,1.01329229]
[1762166472474,0.012,107460.0,107450.0,0.96347454]
[1762166474271,0.012,107460.0,107450.0,0.87039494]
[1762166474460,0.14749494,107460.0,107450.0,0.7788]
[1762166474659,0.14749494,107460.0,107450.0,1.1930396]
[1762166475866,0.0559,107460.0,107450.0,1.1930396]
[1762166476370,0.0559,107460.0,107450.0,1.24285735]
[1762166477871,0.0559,107460.0,107450.0,1.14977775]
[1762166478270,0.0559,107460.0,107450.0,1.24285735]
[1762166479172,0.0559,107460.0,107450.0,1.14977775]
[1762166479369,0.14749494,107460.0,107450.0,0.82861775]
[1762166479570,0.15884494,107460.0,107450.0,0.82861775]
[1762166479771,0.15884494,107460.0,107450.0,0.7788]
[1762166479972,0.14749494,107460.0,107450.0,0.7788]
[1762166480871,0.14749494,107460.0,107450.0,0.0572]
[1762166481073,0.05633,107450.0,107440.0,0.10679775]
[1762166481270,0.50872494,107450.0,107440.0,0.04389]
[1762166481470,0.05744,107440.0,107430.0,0.46759775]
[1762166481672,0.47019494,107440.0,107430.0,0.41778]
[1762166482777,0.47119494,107440.0,107430.0,0.05698]
[1762166483477,0.47119494,107440.0,107430.0,0.04389]
[1762166483777,0.04449,107430.0,107420.0,0.46723775]
[1762166483977,0.13608494,107430.0,107420.0,0.46723775]
[1762166484882,0.14903494,107430.0,107420.0,0.46723775]
[1762166485784,0.13608494,107430.0,107420.0,0.46823775]
[1762166486079,0.13608494,107430.0,107420.0,0.41842]
[1762166486080,0.14903494,107430.0,107420.0,0.41842]
[1762166486970,0.14903494,107430.0,107420.0,0.41942]
[1762166487575,0.50983494,107430.0,107420.0,0.002]
[1762166487885,0.60142988,107430.0,107420.0,0.002]
[1762166488084,0.62345016,107430.0,107420.0,0.002]
[1762166488269,0.62345016,107430.0,107420.0,0.001]
[1762166488474,0.60342988,107430.0,107420.0,0.001]
[1762166488784,0.04449,107410.0,107400.0,0.41798]
[1762166489178,0.45728494,107420.0,107410.0,0.05718]
[1762166489677,0.45728494,107420.0,107410.0,0.41798]
[1762166490084,0.37507715,107420.0,107410.0,0.41798]
[1762166490784,0.37707715,107420.0,107410.0,0.41798]
[1762166491474,0.37707715,107420.0,107410.0,0.5110942]
[1762166491877,0.37707715,107420.0,107410.0,0.41798]
[1762166493184,0.37807715,107420.0,107410.0,0.5110943]
[1762166493487,0.37807715,107420.0,107410.0,0.41798]